fUSD/lending_fUSD_20240615
["ID","MTS","AMOUNT","RATE_DAILY","PERIOD"]
[329529148,1718417556626,-500.0,0.00025479,3]
[329529149,1718417556641,-500.0,0.00025479,3]
[329529150,1718417556682,-500.0,0.00025479,3]
[329529151,1718417556698,-507.65,0.00025479,3]
[329529152,1718417556715,-500.0,0.00025479,3]
[329529153,1718417556738,-500.0,0.00025479,3]
[329529154,1718417556761,-500.0,0.00025479,3]
[329529155,1718417556777,-418.02386192,0.00025479,3]
[329529156,1718417556820,-500.0,0.00025479,3]
[329529157,1718417556837,-515.84,0.00025479,3]
[329529158,1718417556860,-554.45495095,0.00025479,3]
[329529159,1718417556874,-500.0,0.00025479,3]
[329529160,1718417556890,-500.0,0.00025479,3]
[329529161,1718417556903,-501.07,0.00025479,3]
[329529162,1718417556916,-500.0,0.00025479,3]
[329529163,1718417556929,-363.18564217,0.00025479,3]
[329529164,1718417556955,-500.0,0.00025479,3]
[329529165,1718417556988,-500.0,0.00025479,3]
[329529166,1718417557001,-672.79,0.00025479,3]
[329529167,1718417557020,-500.0,0.00025479,3]
[329529168,1718417557033,-500.0,0.00025479,3]
[329529169,1718417557077,-500.0,0.00025479,3]
[329529170,1718417557105,-500.0,0.00025479,3]
[329529171,1718417557132,-500.0,0.00025479,3]
[329529172,1718417557147,-870.98,0.00025479,3]
[329529173,1718417557165,-668.73,0.00025479,3]
[329529174,1718417557204,-500.0,0.00025479,3]
[329529175,1718417557219,-500.0,0.00025479,3]
[329529176,1718417557236,-500.0,0.00025479,3]
[329529177,1718417557266,-1385.03,0.00025479,3]
[329529178,1718417557298,-500.0,0.00025479,3]
[329529179,1718417557312,-500.0,0.00025479,3]
[329529180,1718417557331,-545.94,0.00025479,3]
[329529181,1718417557348,-728.36,0.00025479,3]
[329529182,1718417557384,-888.58,0.00025479,3]
[329529183,1718417557397,-682.82,0.00025479,3]
[329529184,1718417557418,-500.0,0.00025479,3]
[329529185,1718417557430,-532.27,0.00025479,3]
[329529186,1718417557448,-4841.14,0.00025479,3]
[329529187,1718417557460,-606.39,0.00025479,3]
[329529188,1718417557472,-500.0,0.00025479,3]
[329529189,1718417557487,-856.26,0.00025479,3]
[329529190,1718417557503,-500.0,0.00025479,3]
[329529191,1718417557533,-500.0,0.00025479,3]
[329529192,1718417557553,-506.1,0.00025479,3]
[329529193,1718417557568,-500.0,0.00025479,3]
[329529194,1718417557580,-724.3,0.00025479,3]
[329529195,1718417557592,-531.35,0.00025479,3]
[329529196,1718417557603,-813.58,0.00025479,3]
[329529197,1718417557614,-500.0,0.00025479,3]
[329529198,1718417557626,-500.0,0.00025479,3]
[329529199,1718417557644,-235.26372838,0.00025479,3]
[329529200,1718417557660,-500.0,0.00025479,3]
[329529201,1718417557676,-500.0,0.00025479,3]
[329529202,1718417557696,-519.65,0.00025479,3]
[329529203,1718417557754,-515.24,0.00025479,3]
[329529204,1718417557782,-778.57,0.00025479,3]
[329529205,1718417557821,-500.0,0.00025479,3]
[329529206,1718417557844,-1047.51,0.00025479,3]
[329529207,1718417557868,-903.22,0.00025479,3]
[329529208,1718417557889,-746.57,0.00025479,3]
[329529209,1718417557924,-639.11,0.00025479,3]
[329529210,1718417557946,-777.96,0.00025479,3]
[329529211,1718417557971,-803.6,0.00025479,3]
[329529212,1718417557984,-500.0,0.00025479,3]
[329529213,1718417557998,-2432.85,0.00025479,3]
[329529214,1718417558011,-500.0,0.00025479,3]
[329529215,1718417558037,-3528.32,0.00025479,3]
[329529216,1718417558052,-559.3,0.00025479,3]
[329529217,1718417558078,-518.99,0.00025479,3]
[329529218,1718417558097,-626.24,0.00025479,3]
[329529219,1718417558118,-500.0,0.00025479,3]
[329529220,1718417558146,-2169.8,0.00025479,3]
[329529221,1718417558165,-1397.37,0.00025479,3]
[329529222,1718417558177,-1812.96,0.00025479,3]
[329529223,1718417558207,-1116.08,0.00025479,3]
[329529224,1718417558235,-2203.0,0.00025479,3]
[329529225,1718417558268,-2898.04,0.00025479,3]
[329529226,1718417558295,-1318.8,0.00025479,3]
[329529227,1718417558322,-500.0,0.00025479,3]
[329529228,1718417558343,-1088.26,0.00025479,3]
[329529229,1718417558358,-1288.4,0.00025479,3]
[329529230,1718417558416,-7905.56,0.00025479,3]
[329529231,1718417558435,-500.0,0.00025479,3]
[329529232,1718417558452,-646.18438299,0.00025479,3]
[329529233,1718417558464,-974.3,0.00025479,3]
[329529234,1718417558478,-771.35,0.00025479,3]
[329529235,1718417558497,-2138.1,0.00025479,3]
[329529236,1718417558522,-691.68,0.00025479,3]
[329529237,1718417558567,-500.0,0.00025479,3]
[329529238,1718417558612,-3270.81,0.00025479,3]
[329529239,1718417558626,-713.64,0.00025479,3]
[329529240,1718417558655,-599.22,0.00025479,3]
[329529241,1718417558683,-500.0,0.00025479,3]
[329529242,1718417558697,-500.0,0.00025479,3]
[329529243,1718417558708,-500.0,0.00025479,3]
[329529244,1718417558719,-523.84,0.00025479,3]
[329529245,1718417558734,-500.0,0.00025479,3]
[329529246,1718417558749,-1195.79,0.00025479,3]
[329529247,1718417558761,-500.0,0.00025479,3]
[329529248,1718417558780,-1341.44,0.00025479,3]
[329529249,1718417558796,-1129.63,0.00025479,3]
[329529250,1718417558812,-500.0,0.00025479,3]
[329529251,1718417558825,-1346.88,0.00025479,3]
[329529252,1718417558843,-500.0,0.00025479,3]
[329529253,1718417558880,-3501.23,0.00025479,3]
[329529254,1718417558904,-516.84,0.00025479,3]
[329529255,1718417558921,-395.2646171,0.00025479,3]
[329529256,1718417558935,-1291.54,0.00025479,3]
[329529257,1718417558961,-809.78,0.00025479,3]
[329529258,1718417558975,-500.0,0.00025479,3]
[329529259,1718417558993,-923.8,0.00025479,3]
[329529260,1718417559005,-1654.95,0.00025479,3]
[329529261,1718417559017,-854.0,0.00025479,3]
[329529262,1718417559030,-4144.87,0.00025479,3]
[329529263,1718417559042,-2305.21,0.00025479,3]
[329529264,1718417559069,-1983.64,0.00025479,3]
[329529265,1718417559104,-768.32,0.00025479,3]
[329529266,1718417559171,-500.0,0.00025479,3]
[329529267,1718417559190,-822.64,0.00025479,3]
[329529268,1718417559214,-5336.34,0.00025479,3]
[329529269,1718417559247,-486.98987655,0.0002551,2]
[329529270,1718417559299,-180.79515138,0.00025542,2]
[329529271,1718417559319,-166.66666668,0.0002555,2]
[329529272,1718417559532,-159.23399043,0.00025604,2]
[329529273,1718417559562,-150.28398385,0.00025608,2]
[329529274,1718417559574,-154.16302203,0.0002562,2]
[329529275,1718417559586,-539.095606,0.0002562,2]
[329529276,1718417559618,-589.22763664,0.00025646,2]
[329529277,1718417559661,-486.98987655,0.00025653,2]
[329529278,1718417559696,-156.64035792,0.00025655,2]
[329529279,1718417559730,-150.0246704,0.00025672,2]
[329529280,1718417559785,-453.74,0.00025673,2]
[329529281,1718417559812,-153.06091491,0.00025691,2]
[329529282,1718417559828,-486.41577271,0.00025748,3]
[329529283,1718417559854,-500.0,0.00025753,3]
[329529284,1718417559878,-500.0,0.00025753,3]
[329529285,1718417559900,-668.77,0.00025753,3]
[329529286,1718417559939,-500.0,0.00025753,3]
[329529287,1718417559964,-500.0,0.00025753,3]
[329529288,1718417559976,-558.89,0.00025753,3]
[329529289,1718417559994,-500.0,0.00025753,3]
[329529290,1718417560011,-607.69,0.00025753,3]
[329529291,1718417560038,-785.34,0.00025753,3]
[329529292,1718417560054,-490.66310459,0.00025753,3]
[329529293,1718417560069,-500.0,0.00025753,3]
[329529294,1718417560091,-500.0,0.00025753,3]
[329529295,1718417560103,-500.0,0.00025753,3]
[329529296,1718417560130,-507.65,0.00025753,3]
[329529297,1718417560142,-500.0,0.00025753,3]
[329529298,1718417560164,-500.0,0.00025753,3]
[329529299,1718417560178,-500.0,0.00025753,3]
[329529300,1718417560194,-515.84,0.00025753,3]
[329529301,1718417560210,-500.0,0.00025753,3]
[329529302,1718417560237,-500.0,0.00025753,3]
[329529303,1718417560250,-501.07,0.00025753,3]
[329529304,1718417560279,-500.0,0.00025753,3]
[329529305,1718417560295,-500.0,0.00025753,3]
[329529306,1718417560312,-500.0,0.00025753,3]
[329529307,1718417560328,-672.79,0.00025753,3]
[329529308,1718417560348,-500.0,0.00025753,3]
[329529309,1718417560368,-500.0,0.00025753,3]
[329529310,1718417560397,-500.0,0.00025753,3]
[329529311,1718417560422,-500.0,0.00025753,3]
[329529312,1718417560446,-500.0,0.00025753,3]
[329529313,1718417560466,-870.98,0.00025753,3]
[329529314,1718417560489,-668.73,0.00025753,3]
[329529315,1718417560504,-500.0,0.00025753,3]
[329529316,1718417560542,-500.0,0.00025753,3]
[329529317,1718417560554,-500.0,0.00025753,3]
[329529318,1718417560566,-1385.03,0.00025753,3]
[329529319,1718417560581,-500.0,0.00025753,3]
[329529320,1718417560596,-500.0,0.00025753,3]
[329529321,1718417560623,-545.94,0.00025753,3]
[329529322,1718417560643,-728.36,0.00025753,3]
[329529323,1718417560659,-888.58,0.00025753,3]
[329529324,1718417560698,-682.82,0.00025753,3]
[329529325,1718417560731,-191.56116028,0.00025753,3]
[329529326,1718417560771,-532.27,0.00025753,3]
[329529327,1718417560790,-4841.14,0.00025753,3]
[329529328,1718417560813,-606.39,0.00025753,3]
[329529329,1718417560828,-500.0,0.00025753,3]
[329529330,1718417560854,-856.26,0.00025753,3]
[329529331,1718417560870,-500.0,0.00025753,3]
[329529332,1718417560896,-500.0,0.00025753,3]
[329529333,1718417560915,-506.1,0.00025753,3]
[329529334,1718417560931,-286.54170707,0.00025753,3]
[329529335,1718417560965,-724.3,0.00025753,3]
[329529336,1718417560986,-531.35,0.00025753,3]
[329529337,1718417561000,-813.58,0.00025753,3]
[329529338,1718417561014,-500.0,0.00025753,3]
[329529339,1718417561032,-500.0,0.00025753,3]
[329529340,1718417561050,-500.0,0.00025753,3]
[329529341,1718417561079,-500.0,0.00025753,3]
[329529342,1718417561097,-519.65,0.00025753,3]
[329529343,1718417561129,-515.24,0.00025753,3]
[329529344,1718417561156,-778.57,0.00025753,3]
[329529345,1718417561185,-500.0,0.00025753,3]
[329529346,1718417561222,-1047.51,0.00025753,3]
[329529347,1718417561240,-903.22,0.00025753,3]
[329529348,1718417561278,-746.57,0.00025753,3]
[329529349,1718417561315,-639.11,0.00025753,3]
[329529350,1718417561356,-777.96,0.00025753,3]
[329529351,1718417561398,-803.6,0.00025753,3]
[329529352,1718417561410,-500.0,0.00025753,3]
[329529353,1718417561449,-2432.85,0.00025753,3]
[329529354,1718417561470,-500.0,0.00025753,3]
[329529355,1718417561492,-3528.32,0.00025753,3]
[329529356,1718417561507,-559.3,0.00025753,3]
[329529357,1718417561542,-518.99,0.00025753,3]
[329529358,1718417561559,-626.24,0.00025753,3]
[329529359,1718417561572,-500.0,0.00025753,3]
[329529360,1718417561587,-2169.8,0.00025753,3]
[329529361,1718417561623,-1397.37,0.00025753,3]
[329529362,1718417561635,-1812.96,0.00025753,3]
[329529363,1718417561657,-1116.08,0.00025753,3]
[329529364,1718417561688,-2203.0,0.00025753,3]
[329529365,1718417561703,-2898.04,0.00025753,3]
[329529366,1718417561714,-1318.8,0.00025753,3]
[329529367,1718417561730,-500.0,0.00025753,3]
[329529368,1718417561764,-1088.26,0.00025753,3]
[329529369,1718417561775,-1288.4,0.00025753,3]
[329529370,1718417561786,-7905.56,0.00025753,3]
[329529371,1718417561796,-500.0,0.00025753,3]
[329529372,1718417561807,-974.3,0.00025753,3]
[329529373,1718417561823,-771.35,0.00025753,3]
[329529374,1718417561835,-2138.1,0.00025753,3]
[329529375,1718417561850,-691.68,0.00025753,3]
[329529376,1718417561866,-500.0,0.00025753,3]
[329529377,1718417561900,-3270.81,0.00025753,3]
[329529378,1718417561915,-713.64,0.00025753,3]
[329529379,1718417561927,-599.22,0.00025753,3]
[329529380,1718417561948,-500.0,0.00025753,3]
[329529381,1718417561963,-518.99185205,0.00025753,3]
[329529382,1718417561975,-500.0,0.00025753,3]
[329529383,1718417561993,-523.84,0.00025753,3]
[329529384,1718417562006,-187.96503967,0.00025753,3]
[329529385,1718417562023,-1195.79,0.00025753,3]
[329529386,1718417562065,-500.0,0.00025753,3]
[329529387,1718417562088,-1341.44,0.00025753,3]
[329529388,1718417562106,-1129.63,0.00025753,3]
[329529389,1718417562121,-500.0,0.00025753,3]
[329529390,1718417562149,-1346.88,0.00025753,3]
[329529391,1718417562165,-500.0,0.00025753,3]
[329529392,1718417562222,-3501.23,0.00025753,3]
[329529393,1718417562236,-516.84,0.00025753,3]
[329529394,1718417562251,-1291.54,0.00025753,3]
[329529395,1718417562280,-809.78,0.00025753,3]
[329529396,1718417562310,-500.0,0.00025753,3]
[329529397,1718417562341,-923.8,0.00025753,3]
[329529398,1718417562368,-1654.95,0.00025753,3]
[329529399,1718417562379,-854.0,0.00025753,3]
[329529400,1718417562405,-4144.87,0.00025753,3]
[329529401,1718417562434,-2305.21,0.00025753,3]
[329529402,1718417562471,-1983.64,0.00025753,3]
[329529403,1718417562507,-768.32,0.00025753,3]
[329529404,1718417562529,-296.09160616,0.00025753,3]
[329529405,1718417562541,-5336.34,0.00025753,3]
[329529406,1718417562560,-822.64,0.00025753,3]
[329529407,1718417562574,-154.16302203,0.00025775,2]
[329529408,1718417562585,-486.98987655,0.00025787,2]
[329529409,1718417562608,-589.22763664,0.00025798,2]
[329529410,1718417562623,-170.31725903,0.00025812,2]
[329529411,1718417562634,-303.32553598,0.00025856,2]
[329529412,1718417562655,-189.15,0.0002589,2]
[329529413,1718417562671,-589.22763664,0.00025895,2]
[329529414,1718417562685,-285.91,0.000259,2]
[329529415,1718417562697,-166.0,0.000259,2]
[329529416,1718417562708,-2100.0,0.00025932,2]
[329529417,1718417562720,-151.0,0.00025949,4]
[329529418,1718417562746,-156.64035792,0.00025957,2]
[329529419,1718417562761,-295.0,0.00026,2]
[329529420,1718417562772,-2000.0,0.00026,2]
[329529421,1718417562790,-6051.83,0.00026,2]
[329529422,1718417562806,-462.49,0.00026,30]
[329529423,1718417562819,-151.37127213,0.0002601,2]
[329529424,1718417562833,-500.0,0.00026027,3]
[329529425,1718417562854,-307.3568265,0.00026027,3]
[329529426,1718417562878,-668.77,0.00026027,3]
[329529427,1718417562934,-157.9574019,0.00026027,3]
[329529428,1718417562952,-500.0,0.00026027,3]
[329529429,1718417562975,-558.89,0.00026027,3]
[329529430,1718417563002,-626.97466634,0.00026027,3]
[329529431,1718417563019,-607.69,0.00026027,3]
[329529432,1718417563050,-785.34,0.00026027,3]
[329529433,1718417563064,-500.0,0.00026027,3]
[329529434,1718417563080,-500.0,0.00026027,3]
[329529435,1718417563096,-500.0,0.00026027,3]
[329529436,1718417563112,-507.65,0.00026027,3]
[329529437,1718417563213,-500.0,0.00026027,3]
[329529438,1718417563238,-500.0,0.00026027,3]
[329529439,1718417563256,-480.08078518,0.00026027,3]
[329529440,1718417563288,-515.84,0.00026027,3]
[329529441,1718417563302,-500.0,0.00026027,3]
[329529442,1718417563322,-500.0,0.00026027,3]
[329529443,1718417563339,-501.07,0.00026027,3]
[329529444,1718417563359,-380.28575584,0.00026027,3]
[329529445,1718417563394,-249.8937186,0.00026027,3]
[329529446,1718417563410,-254.87092051,0.00026027,3]
[329529447,1718417563422,-672.79,0.00026027,3]
[329529448,1718417563454,-500.0,0.00026027,3]
[329529449,1718417563485,-544.99421305,0.00026027,3]
[329529450,1718417563497,-346.81841278,0.00026027,3]
[329529451,1718417563521,-516.78807832,0.00026027,3]
[329529452,1718417563534,-500.0,0.00026027,3]
[329529453,1718417563567,-870.98,0.00026027,3]
[329529454,1718417563579,-668.73,0.00026027,3]
[329529455,1718417563590,-523.82483089,0.00026027,3]
[329529456,1718417563602,-476.39595255,0.00026027,3]
[329529457,1718417563636,-500.0,0.00026027,3]
[329529458,1718417563651,-1385.03,0.00026027,3]
[329529459,1718417563670,-522.66827473,0.00026027,3]
[329529460,1718417563685,-561.91629674,0.00026027,3]
[329529461,1718417563701,-545.94,0.00026027,3]
[329529462,1718417563714,-728.36,0.00026027,3]
[329529463,1718417563732,-888.58,0.00026027,3]
[329529464,1718417563748,-682.82,0.00026027,3]
[329529465,1718417563773,-532.27,0.00026027,3]
[329529466,1718417563786,-4841.14,0.00026027,3]
[329529467,1718417563807,-606.39,0.00026027,3]
[329529468,1718417563822,-500.0,0.00026027,3]
[329529469,1718417563835,-856.26,0.00026027,3]
[329529470,1718417563849,-500.0,0.00026027,3]
[329529471,1718417563860,-500.0,0.00026027,3]
[329529472,1718417563877,-506.1,0.00026027,3]
[329529473,1718417563891,-724.3,0.00026027,3]
[329529474,1718417563903,-531.35,0.00026027,3]
[329529475,1718417563925,-813.58,0.00026027,3]
[329529476,1718417563937,-500.0,0.00026027,3]
[329529477,1718417563954,-500.0,0.00026027,3]
[329529478,1718417563966,-500.0,0.00026027,3]
[329529479,1718417563977,-500.0,0.00026027,3]
[329529480,1718417563991,-519.65,0.00026027,3]
[329529481,1718417564001,-515.24,0.00026027,3]
[329529482,1718417564016,-778.57,0.00026027,3]
[329529483,1718417564030,-500.0,0.00026027,3]
[329529484,1718417564048,-1047.51,0.00026027,3]
[329529485,1718417564061,-903.22,0.00026027,3]
[329529486,1718417564072,-746.57,0.00026027,3]
[329529487,1718417564086,-639.11,0.00026027,3]
[329529488,1718417564104,-777.96,0.00026027,3]
[329529489,1718417564115,-803.6,0.00026027,3]
[329529490,1718417564132,-330.34470952,0.00026027,3]
[329529491,1718417564144,-2432.85,0.00026027,3]
[329529492,1718417564159,-500.0,0.00026027,3]
[329529493,1718417564182,-3528.32,0.00026027,3]
[329529494,1718417564206,-559.3,0.00026027,3]
[329529495,1718417564220,-518.99,0.00026027,3]
[329529496,1718417564244,-626.24,0.00026027,3]
[329529497,1718417564256,-500.0,0.00026027,3]
[329529498,1718417564272,-2169.8,0.00026027,3]
[329529499,1718417564285,-1397.37,0.00026027,3]
[329529500,1718417564310,-1812.96,0.00026027,3]
[329529501,1718417564328,-1116.08,0.00026027,3]
[329529502,1718417564339,-2203.0,0.00026027,3]
[329529503,1718417564351,-2898.04,0.00026027,3]
[329529504,1718417564370,-1318.8,0.00026027,3]
[329529505,1718417564385,-500.0,0.00026027,3]
[329529506,1718417564401,-1088.26,0.00026027,3]
[329529507,1718417564423,-1288.4,0.00026027,3]
[329529508,1718417564456,-7905.56,0.00026027,3]
[329529509,1718417564469,-500.0,0.00026027,3]
[329529510,1718417564482,-974.3,0.00026027,3]
[329529511,1718417564500,-771.35,0.00026027,3]
[329529512,1718417564517,-2138.1,0.00026027,3]
[329529513,1718417564534,-691.68,0.00026027,3]
[329529514,1718417564548,-500.0,0.00026027,3]
[329529515,1718417564561,-3270.81,0.00026027,3]
[329529516,1718417564573,-713.64,0.00026027,3]
[329529517,1718417564586,-599.22,0.00026027,3]
[329529518,1718417564611,-500.0,0.00026027,3]
[329529519,1718417564625,-191.04438088,0.00026027,3]
[329529520,1718417564639,-523.84,0.00026027,3]
[329529521,1718417564657,-1195.79,0.00026027,3]
[329529522,1718417564677,-500.0,0.00026027,3]
[329529523,1718417564692,-1341.44,0.00026027,3]
[329529524,1718417564712,-1129.63,0.00026027,3]
[329529525,1718417564725,-500.0,0.00026027,3]
[329529526,1718417564738,-1346.88,0.00026027,3]
[329529527,1718417564763,-500.0,0.00026027,3]
[329529528,1718417564780,-3501.23,0.00026027,3]
[329529529,1718417564799,-516.84,0.00026027,3]
[329529530,1718417564826,-1291.54,0.00026027,3]
[329529531,1718417564849,-809.78,0.00026027,3]
[329529532,1718417564862,-500.0,0.00026027,3]
[329529533,1718417564879,-923.8,0.00026027,3]
[329529534,1718417564892,-1654.95,0.00026027,3]
[329529535,1718417564918,-854.0,0.00026027,3]
[329529536,1718417564937,-4144.87,0.00026027,3]
[329529537,1718417564971,-2305.21,0.00026027,3]
[329529538,1718417565002,-1983.64,0.00026027,3]
[329529539,1718417565034,-768.32,0.00026027,3]
[329529540,1718417565054,-5336.34,0.00026027,3]
[329529541,1718417565067,-822.64,0.00026027,3]
[329529542,1718417565090,-237.17,0.00026069,2]
[329529543,1718417565101,-180.79515138,0.00026074,2]
[329529544,1718417565131,-153.91472008,0.00026077,2]
[329529545,1718417565156,-155.86084039,0.00026117,2]
[329529546,1718417565176,-457.4,0.00026143,2]
[329529547,1718417565192,-151.0,0.00026198,2]
[329529548,1718417565206,-997.04,0.0002624,2]
[329529549,1718417565222,-151.37127213,0.0002625,2]
[329529550,1718417565235,-892.31820147,0.00026251,2]
[329529551,1718417565248,-500.0,0.00026301,3]
[329529552,1718417565260,-668.77,0.00026301,3]
[329529553,1718417565277,-500.0,0.00026301,3]
[329529554,1718417565303,-558.89,0.00026301,3]
[329529555,1718417565334,-607.69,0.00026301,3]
[329529556,1718417565360,-785.34,0.00026301,3]
[329529557,1718417565374,-500.0,0.00026301,3]
[329529558,1718417565528,-500.0,0.00026301,3]
[329529559,1718417565542,-524.96264812,0.00026301,3]
[329529560,1718417565553,-507.65,0.00026301,3]
[329529561,1718417565577,-500.0,0.00026301,3]
[329529562,1718417565602,-502.52529618,0.00026301,3]
[329529563,1718417565614,-515.84,0.00026301,3]
[329529564,1718417565626,-500.0,0.00026301,3]
[329529565,1718417565639,-500.0,0.00026301,3]
[329529566,1718417565651,-501.07,0.00026301,3]
[329529567,1718417565663,-672.79,0.00026301,3]
[329529568,1718417565676,-500.0,0.00026301,3]
[329529569,1718417565692,-500.0,0.00026301,3]
[329529570,1718417565705,-870.98,0.00026301,3]
[329529571,1718417565722,-668.73,0.00026301,3]
[329529572,1718417565734,-500.0,0.00026301,3]
[329529573,1718417565746,-1385.03,0.00026301,3]
[329529574,1718417565791,-545.94,0.00026301,3]
[329529575,1718417565806,-728.36,0.00026301,3]
[329529576,1718417565833,-888.58,0.00026301,3]
[329529577,1718417565850,-682.82,0.00026301,3]
[329529578,1718417565881,-532.27,0.00026301,3]
[329529579,1718417565894,-4841.14,0.00026301,3]
[329529580,1718417565906,-606.39,0.00026301,3]
[329529581,1718417565920,-500.0,0.00026301,3]
[329529582,1718417565935,-856.26,0.00026301,3]
[329529583,1718417565948,-500.0,0.00026301,3]
[329529584,1718417565960,-500.0,0.00026301,3]
[329529585,1718417565973,-506.1,0.00026301,3]
[329529586,1718417565987,-724.3,0.00026301,3]
[329529587,1718417566000,-531.35,0.00026301,3]
[329529588,1718417566020,-813.58,0.00026301,3]
[329529589,1718417566032,-500.0,0.00026301,3]
[329529590,1718417566051,-276.54823436,0.00026301,3]
[329529591,1718417566064,-500.0,0.00026301,3]
[329529592,1718417566077,-500.0,0.00026301,3]
[329529593,1718417566089,-519.65,0.00026301,3]
[329529594,1718417566102,-515.24,0.00026301,3]
[329529595,1718417566115,-778.57,0.00026301,3]
[329529596,1718417566140,-500.0,0.00026301,3]
[329529597,1718417566158,-1047.51,0.00026301,3]
[329529598,1718417566171,-903.22,0.00026301,3]
[329529599,1718417566191,-746.57,0.00026301,3]
[329529600,1718417566210,-639.11,0.00026301,3]
[329529601,1718417566223,-777.96,0.00026301,3]
[329529602,1718417566235,-803.6,0.00026301,3]
[329529603,1718417566250,-2432.85,0.00026301,3]
[329529604,1718417566273,-480.21149807,0.00026301,3]
[329529605,1718417566286,-3528.32,0.00026301,3]
[329529606,1718417566298,-559.3,0.00026301,3]
[329529607,1718417566310,-518.99,0.00026301,3]
[329529608,1718417566324,-626.24,0.00026301,3]
[329529609,1718417566338,-500.0,0.00026301,3]
[329529610,1718417566352,-2169.8,0.00026301,3]
[329529611,1718417566368,-1397.37,0.00026301,3]
[329529612,1718417566381,-1812.96,0.00026301,3]
[329529613,1718417566394,-1116.08,0.00026301,3]
[329529614,1718417566408,-2203.0,0.00026301,3]
[329529615,1718417566433,-2898.04,0.00026301,3]
[329529616,1718417566453,-1318.8,0.00026301,3]
[329529617,1718417566477,-500.0,0.00026301,3]
[329529618,1718417566492,-1088.26,0.00026301,3]
[329529619,1718417566515,-1288.4,0.00026301,3]
[329529620,1718417566532,-7905.56,0.00026301,3]
[329529621,1718417566561,-500.0,0.00026301,3]
[329529622,1718417566577,-974.3,0.00026301,3]
[329529623,1718417566596,-771.35,0.00026301,3]
[329529624,1718417566607,-2138.1,0.00026301,3]
[329529625,1718417566620,-691.68,0.00026301,3]
[329529626,1718417566634,-500.0,0.00026301,3]
[329529627,1718417566649,-3270.81,0.00026301,3]
[329529628,1718417566683,-713.64,0.00026301,3]
[329529629,1718417566730,-599.22,0.00026301,3]
[329529630,1718417566747,-500.0,0.00026301,3]
[329529631,1718417566766,-523.84,0.00026301,3]
[329529632,1718417566779,-1195.79,0.00026301,3]
[329529633,1718417566813,-500.0,0.00026301,3]
[329529634,1718417566828,-1341.44,0.00026301,3]
[329529635,1718417566841,-1129.63,0.00026301,3]
[329529636,1718417566863,-500.0,0.00026301,3]
[329529637,1718417566883,-1346.88,0.00026301,3]
[329529638,1718417566897,-500.0,0.00026301,3]
[329529639,1718417566912,-3501.23,0.00026301,3]
[329529640,1718417566924,-516.84,0.00026301,3]
[329529641,1718417566939,-1291.54,0.00026301,3]
[329529642,1718417566952,-809.78,0.00026301,3]
[329529643,1718417566965,-500.0,0.00026301,3]
[329529644,1718417566992,-923.8,0.00026301,3]
[329529645,1718417567003,-1654.95,0.00026301,3]
[329529646,1718417567020,-4144.87,0.00026301,3]
[329529647,1718417567034,-2305.21,0.00026301,3]